[Event "Titled Tuesday Blitz February 21 Early 2023"]
[White "WindWhistler11"]
[Black "Miszler, Levente"]
[BlackFideId "763276"]
[WhiteElo "2536"]
[BlackElo "2271"]
[Result "0-1"]
[Round "03"]
[TimeControl "180+2"]
[Date "2023.02.21"]
[WhiteClock "0:00:01"]
[BlackClock "0:00:35"]

1. Nf3 {[%clk 0:02:55]}  Nf6 {[%clk 0:02:54]} 2. g3 {[%clk 0:02:56]}  g6 {[%clk 0:02:54]} 3. d3 {[%clk 0:02:57]}  Bg7 {[%clk 0:02:54]} 4. Nbd2 {[%clk 0:02:57]}  d6 {[%clk 0:02:54]} 5. Bg2 {[%clk 0:02:58]}  O-O {[%clk 0:02:55]} 6. O-O {[%clk 0:02:59]}  e5 {[%clk 0:02:54]} 7. c4 {[%clk 0:02:59]}  Nc6 {[%clk 0:02:53]} 8. Rb1 {[%clk 0:02:59]}  a5 {[%clk 0:02:53]} 9. b3 {[%clk 0:02:55]}  h6 {[%clk 0:02:52]} 10. a3 {[%clk 0:02:55]}  Be6 {[%clk 0:02:51]} 11. Bb2 {[%clk 0:02:55]}  Qd7 {[%clk 0:02:51]} 12. Re1 {[%clk 0:02:55]}  Bh3 {[%clk 0:02:51]} 13. Bh1 {[%clk 0:02:55]}  Nh5 {[%clk 0:02:51]} 14. Nh4 {[%clk 0:02:43]}  g5 {[%clk 0:02:46]} 15. Ng2 {[%clk 0:02:14]}  f5 {[%clk 0:02:44]} 16. e3 {[%clk 0:02:13]}  Nf6 {[%clk 0:02:34]} 17. f4 {[%clk 0:01:37]}  Rae8 {[%clk 0:02:28]} 18. b4 {[%clk 0:01:27]}  axb4 {[%clk 0:02:18]} 19. axb4 {[%clk 0:01:25]}  Ng4 {[%clk 0:02:13]} 20. b5 {[%clk 0:01:20]}  Nd8 {[%clk 0:02:03]} 21. Nf1 {[%clk 0:01:05]}  Ne6 {[%clk 0:01:48]} 22. fxe5 {[%clk 0:00:44]}  dxe5 {[%clk 0:01:46]} 23. Ba3 {[%clk 0:00:40]}  Rf7 {[%clk 0:01:45]} 24. c5 {[%clk 0:00:33]}  f4 {[%clk 0:01:44]} 25. exf4 {[%clk 0:00:31]}  Qd4+ {[%clk 0:01:31]} 26. Nge3 {[%clk 0:00:25]}  exf4 {[%clk 0:01:29]} 27. Rb4 {[%clk 0:00:22]}  fxe3 {[%clk 0:01:19]} 28. Rxd4 {[%clk 0:00:20]}  Bxd4 {[%clk 0:01:20]} 29. Qe2 {[%clk 0:00:13]}  Rf2 {[%clk 0:01:15]} 30. Bxb7 {[%clk 0:00:10]}  Ref8 {[%clk 0:01:06]} 31. Nxe3 {[%clk 0:00:01]}  Rxe2 {[%clk 0:00:35]} 0-1


[Site "https://www.chess.com"]

[Event "Titled Tuesday Blitz February 21 Early 2023"]
[White "Dixit, Nikhil"]
[Black "Can, Melih Kaan"]
[WhiteFideId "5059534"]
[BlackFideId "6317383"]
[WhiteElo "2257"]
[BlackElo "2069"]
[Result "1/2-1/2"]
[Round "03"]
[TimeControl "180+2"]
[Date "2023.02.21"]
[WhiteClock "0:00:18"]
[BlackClock "0:01:18"]

1. e4 {[%clk 0:03:00]}  c5 {[%clk 0:02:59]} 2. Nf3 {[%clk 0:03:00]}  Nc6 {[%clk 0:02:59]} 3. Bb5 {[%clk 0:02:58]}  d6 {[%clk 0:02:59]} 4. O-O {[%clk 0:02:58]}  Bd7 {[%clk 0:02:59]} 5. c3 {[%clk 0:02:57]}  Nf6 {[%clk 0:03:00]} 6. Re1 {[%clk 0:02:55]}  a6 {[%clk 0:03:00]} 7. Bf1 {[%clk 0:02:54]}  Bg4 {[%clk 0:03:00]} 8. h3 {[%clk 0:02:54]}  Bxf3 {[%clk 0:03:01]} 9. Qxf3 {[%clk 0:02:54]}  g6 {[%clk 0:03:02]} 10. d3 {[%clk 0:02:53]}  Bg7 {[%clk 0:03:02]} 11. Na3 {[%clk 0:02:49]}  O-O {[%clk 0:03:02]} 12. Nc2 {[%clk 0:02:50]}  Nd7 {[%clk 0:03:01]} 13. Ne3 {[%clk 0:02:46]}  b5 {[%clk 0:02:59]} 14. h4 {[%clk 0:02:43]}  h5 {[%clk 0:02:54]} 15. g4 {[%clk 0:02:32]}  Nce5 {[%clk 0:02:53]} 16. Qg3 {[%clk 0:02:31]}  hxg4 {[%clk 0:02:22]} 17. Nxg4 {[%clk 0:02:32]}  Nxg4 {[%clk 0:02:20]} 18. Qxg4 {[%clk 0:02:32]}  b4 {[%clk 0:02:11]} 19. Bd2 {[%clk 0:02:19]}  bxc3 {[%clk 0:02:04]} 20. bxc3 {[%clk 0:02:18]}  Rb8 {[%clk 0:02:03]} 21. h5 {[%clk 0:02:16]}  Nf6 {[%clk 0:02:02]} 22. Qh3 {[%clk 0:02:12]}  Nxh5 {[%clk 0:02:01]} 23. Be2 {[%clk 0:02:12]}  Rb2 {[%clk 0:01:34]} 24. Rad1 {[%clk 0:01:56]}  Rxd2 {[%clk 0:01:26]} 25. Rxd2 {[%clk 0:01:56]}  Bxc3 {[%clk 0:01:25]} 26. Bxh5 {[%clk 0:01:42]}  Bxd2 {[%clk 0:01:11]} 27. Rd1 {[%clk 0:01:38]}  Bc3 {[%clk 0:00:57]} 28. Bg4 {[%clk 0:01:34]}  Bg7 {[%clk 0:00:54]} 29. Kg2 {[%clk 0:01:33]}  Qa5 {[%clk 0:00:47]} 30. Rh1 {[%clk 0:01:31]}  Rb8 {[%clk 0:00:47]} 31. Be6 {[%clk 0:01:01]}  Qc3 {[%clk 0:00:20]} 32. Bc4 {[%clk 0:00:55]}  Qf6 {[%clk 0:00:14]} 33. Bxa6 {[%clk 0:00:38]}  d5 {[%clk 0:00:09]} 34. Bc8 {[%clk 0:00:28]}  e6 {[%clk 0:00:07]} 35. Bd7 {[%clk 0:00:24]}  Qg5+ {[%clk 0:00:07]} 36. Qg3 {[%clk 0:00:24]}  Qxg3+ {[%clk 0:00:07]} 37. Kxg3 {[%clk 0:00:24]}  Be5+ {[%clk 0:00:07]} 38. f4 {[%clk 0:00:24]}  Bd4 {[%clk 0:00:04]} 39. e5 {[%clk 0:00:24]}  Rb2 {[%clk 0:00:03]} 40. a4 {[%clk 0:00:24]}  Ra2 {[%clk 0:00:03]} 41. Rb1 {[%clk 0:00:23]}  Kg7 {[%clk 0:00:02]} 42. Rb8 {[%clk 0:00:22]}  c4 {[%clk 0:00:02]} 43. dxc4 {[%clk 0:00:22]}  dxc4 {[%clk 0:00:03]} 44. Rb4 {[%clk 0:00:23]}  Rc2 {[%clk 0:00:02]} 45. Bb5 {[%clk 0:00:22]}  g5 {[%clk 0:00:02]} 46. Rxc4 {[%clk 0:00:22]}  gxf4+ {[%clk 0:00:02]} 47. Kxf4 {[%clk 0:00:22]}  Rxc4 {[%clk 0:00:02]} 48. Bxc4 {[%clk 0:00:23]}  Bc3 {[%clk 0:00:03]} 49. Ke4 {[%clk 0:00:23]}  Ba5 {[%clk 0:00:04]} 50. Bb5 {[%clk 0:00:23]}  Kf8 {[%clk 0:00:03]} 51. Bd7 {[%clk 0:00:23]}  Ke7 {[%clk 0:00:04]} 52. Bb5 {[%clk 0:00:24]}  f6 {[%clk 0:00:04]} 53. exf6+ {[%clk 0:00:24]}  Kxf6 {[%clk 0:00:05]} 54. Bc4 {[%clk 0:00:24]}  e5 {[%clk 0:00:05]} 55. Be2 {[%clk 0:00:25]}  Ke6 {[%clk 0:00:06]} 56. Bd1 {[%clk 0:00:26]}  Kd6 {[%clk 0:00:07]} 57. Bb3 {[%clk 0:00:27]}  Kc5 {[%clk 0:00:08]} 58. Bd1 {[%clk 0:00:28]}  Kb4 {[%clk 0:00:08]} 59. Bc2 {[%clk 0:00:28]}  Bc7 {[%clk 0:00:08]} 60. Kf3 {[%clk 0:00:23]}  Ka5 {[%clk 0:00:08]} 61. Ke2 {[%clk 0:00:23]}  Bb8 {[%clk 0:00:08]} 62. Kd3 {[%clk 0:00:24]}  Ba7 {[%clk 0:00:09]} 63. Bd1 {[%clk 0:00:24]}  Bd4 {[%clk 0:00:09]} 64. Kc4 {[%clk 0:00:24]}  Ba7 {[%clk 0:00:09]} 65. Bf3 {[%clk 0:00:23]}  Bd4 {[%clk 0:00:09]} 66. Kd3 {[%clk 0:00:23]}  Kxa4 {[%clk 0:00:09]} 67. Ke4 {[%clk 0:00:24]}  Kb4 {[%clk 0:00:09]} 68. Bh5 {[%clk 0:00:25]}  Be3 {[%clk 0:00:09]} 69. Bd1 {[%clk 0:00:26]}  Kc3 {[%clk 0:00:09]} 70. Bg4 {[%clk 0:00:26]}  Kb2 {[%clk 0:00:10]} 71. Bd7 {[%clk 0:00:27]}  Ka3 {[%clk 0:00:11]} 72. Bc8 {[%clk 0:00:28]}  Kb4 {[%clk 0:00:12]} 73. Bb7 {[%clk 0:00:28]}  Ka5 {[%clk 0:00:13]} 74. Bd5 {[%clk 0:00:29]}  Kb6 {[%clk 0:00:14]} 75. Bg8 {[%clk 0:00:30]}  Kc7 {[%clk 0:00:14]} 76. Bh7 {[%clk 0:00:31]}  Bd4 {[%clk 0:00:15]} 77. Bg6 {[%clk 0:00:32]}  Kd6 {[%clk 0:00:16]} 78. Bf5 {[%clk 0:00:33]}  Ke7 {[%clk 0:00:16]} 79. Bg4 {[%clk 0:00:34]}  Kf6 {[%clk 0:00:17]} 80. Bh3 {[%clk 0:00:35]}  Kg5 {[%clk 0:00:18]} 81. Bg2 {[%clk 0:00:36]}  Kh4 {[%clk 0:00:19]} 82. Bf1 {[%clk 0:00:36]}  Kg5 {[%clk 0:00:20]} 83. Be2 {[%clk 0:00:37]}  Kf6 {[%clk 0:00:21]} 84. Bd3 {[%clk 0:00:38]}  Ke7 {[%clk 0:00:22]} 85. Bc2 {[%clk 0:00:38]}  Kd6 {[%clk 0:00:22]} 86. Bb1 {[%clk 0:00:39]}  Kc5 {[%clk 0:00:22]} 87. Ba2 {[%clk 0:00:40]}  Kb4 {[%clk 0:00:23]} 88. Bf7 {[%clk 0:00:19]}  Kb5 {[%clk 0:00:24]} 89. Be8+ {[%clk 0:00:19]}  Kb6 {[%clk 0:00:25]} 90. Bg6 {[%clk 0:00:18]}  Kc7 {[%clk 0:00:25]} 91. Kd3 {[%clk 0:00:18]}  Kd6 {[%clk 0:00:26]} 92. Bh7 {[%clk 0:00:18]}  e4+ {[%clk 0:00:26]} 93. Ke2 {[%clk 0:00:18]}  e3 {[%clk 0:00:27]} 94. Bg8 {[%clk 0:00:18]}  Bc3 {[%clk 0:00:27]} 95. Ba2 {[%clk 0:00:19]}  Be1 {[%clk 0:00:28]} 96. Bb1 {[%clk 0:00:19]}  Ke5 {[%clk 0:00:29]} 97. Bg6 {[%clk 0:00:19]}  Kf6 {[%clk 0:00:30]} 98. Bh5 {[%clk 0:00:20]}  Kg5 {[%clk 0:00:30]} 99. Bf3 {[%clk 0:00:20]}  Bf2 {[%clk 0:00:30]} 100. Bh1 {[%clk 0:00:21]}  Kf4 {[%clk 0:00:30]} 101. Bb7 {[%clk 0:00:22]}  Kg3 {[%clk 0:00:30]} 102. Ba6 {[%clk 0:00:23]}  Kf4 {[%clk 0:00:31]} 103. Bb5 {[%clk 0:00:24]}  Ke5 {[%clk 0:00:32]} 104. Ba4 {[%clk 0:00:25]}  Kd4 {[%clk 0:00:33]} 105. Bd1 {[%clk 0:00:25]}  Kc4 {[%clk 0:00:33]} 106. Ba4 {[%clk 0:00:25]}  Kc5 {[%clk 0:00:34]} 107. Be8 {[%clk 0:00:26]}  Kd6 {[%clk 0:00:35]} 108. Bg6 {[%clk 0:00:27]}  Kc7 {[%clk 0:00:36]} 109. Bb1 {[%clk 0:00:28]}  Kb7 {[%clk 0:00:37]} 110. Bc2 {[%clk 0:00:28]}  Kc8 {[%clk 0:00:38]} 111. Bd3 {[%clk 0:00:29]}  Kd8 {[%clk 0:00:38]} 112. Be4 {[%clk 0:00:30]}  Ke8 {[%clk 0:00:39]} 113. Bf3 {[%clk 0:00:31]}  Kf8 {[%clk 0:00:40]} 114. Bg2 {[%clk 0:00:32]}  Ke8 {[%clk 0:00:41]} 115. Bh1 {[%clk 0:00:33]}  Kf8 {[%clk 0:00:42]} 116. Ba8 {[%clk 0:00:33]}  Ke8 {[%clk 0:00:43]} 117. Bb7 {[%clk 0:00:34]}  Kf8 {[%clk 0:00:44]} 118. Be4 {[%clk 0:00:35]}  Ke8 {[%clk 0:00:44]} 119. Bg6+ {[%clk 0:00:35]}  Ke7 {[%clk 0:00:44]} 120. Bc2 {[%clk 0:00:35]}  Ke8 {[%clk 0:00:45]} 121. Bb1 {[%clk 0:00:35]}  Ke7 {[%clk 0:00:46]} 122. Ba2 {[%clk 0:00:36]}  Ke8 {[%clk 0:00:47]} 123. Bd5 {[%clk 0:00:22]}  Ke7 {[%clk 0:00:48]} 124. Bf3 {[%clk 0:00:23]}  Be1 {[%clk 0:00:45]} 125. Kxe1 {[%clk 0:00:21]}  e2 {[%clk 0:00:45]} 126. Bh1 {[%clk 0:00:22]}  Ke8 {[%clk 0:00:44]} 127. Bg2 {[%clk 0:00:23]}  Ke7 {[%clk 0:00:45]} 128. Ba8 {[%clk 0:00:23]}  Ke8 {[%clk 0:00:46]} 129. Bb7 {[%clk 0:00:24]}  Ke7 {[%clk 0:00:46]} 130. Ba6 {[%clk 0:00:25]}  Ke8 {[%clk 0:00:47]} 131. Bb5+ {[%clk 0:00:26]}  Ke7 {[%clk 0:00:48]} 132. Ba4 {[%clk 0:00:27]}  Kd8 {[%clk 0:00:48]} 133. Bb3 {[%clk 0:00:27]}  Ke7 {[%clk 0:00:49]} 134. Bc2 {[%clk 0:00:28]}  Kd8 {[%clk 0:00:50]} 135. Bb1 {[%clk 0:00:29]}  Ke7 {[%clk 0:00:51]} 136. Bg6 {[%clk 0:00:30]}  Kd8 {[%clk 0:00:52]} 137. Bh7 {[%clk 0:00:31]}  Ke7 {[%clk 0:00:53]} 138. Bd3 {[%clk 0:00:31]}  Kd8 {[%clk 0:00:54]} 139. Bc4 {[%clk 0:00:32]}  Ke7 {[%clk 0:00:55]} 140. Bb3 {[%clk 0:00:33]}  Kd8 {[%clk 0:00:55]} 141. Ba2 {[%clk 0:00:34]}  Ke7 {[%clk 0:00:56]} 142. Bb1 {[%clk 0:00:35]}  Kd8 {[%clk 0:00:57]} 143. Bc2 {[%clk 0:00:36]}  Ke7 {[%clk 0:00:57]} 144. Bd3 {[%clk 0:00:37]}  Kd8 {[%clk 0:00:58]} 145. Be4 {[%clk 0:00:38]}  Ke7 {[%clk 0:00:59]} 146. Bf3 {[%clk 0:00:39]}  Kd8 {[%clk 0:01:00]} 147. Bg2 {[%clk 0:00:39]}  Ke7 {[%clk 0:01:01]} 148. Bh1 {[%clk 0:00:40]}  Kd8 {[%clk 0:01:02]} 149. Ba8 {[%clk 0:00:41]}  Ke7 {[%clk 0:01:03]} 150. Bb7 {[%clk 0:00:41]}  Kd8 {[%clk 0:01:04]} 151. Ba6 {[%clk 0:00:42]}  Ke7 {[%clk 0:01:05]} 152. Bc8 {[%clk 0:00:43]}  Kd8 {[%clk 0:01:06]} 153. Bh3 {[%clk 0:00:43]}  Ke7 {[%clk 0:01:06]} 154. Bg4 {[%clk 0:00:44]}  Kd8 {[%clk 0:01:07]} 155. Bf5 {[%clk 0:00:45]}  Ke7 {[%clk 0:01:08]} 156. Be4 {[%clk 0:00:45]}  Kd8 {[%clk 0:01:08]} 157. Bd5 {[%clk 0:00:46]}  Ke7 {[%clk 0:01:09]} 158. Bc4 {[%clk 0:00:46]}  Kd8 {[%clk 0:01:10]} 159. Bb5 {[%clk 0:00:46]}  Ke7 {[%clk 0:01:11]} 160. Ba4 {[%clk 0:00:46]}  Kd8 {[%clk 0:01:12]} 161. Bc2 {[%clk 0:00:47]}  Ke7 {[%clk 0:01:13]} 162. Be4 {[%clk 0:00:20]}  Kd8 {[%clk 0:01:13]} 163. Bh1 {[%clk 0:00:19]}  Ke7 {[%clk 0:01:14]} 164. Ba8 {[%clk 0:00:20]}  Kd8 {[%clk 0:01:15]} 165. Bb7 {[%clk 0:00:21]}  Ke7 {[%clk 0:01:16]} 166. Ba6 {[%clk 0:00:21]}  Kd8 {[%clk 0:01:17]} 167. Bc4 {[%clk 0:00:22]}  Ke7 {[%clk 0:01:18]} 168. Bg8 {[%clk 0:00:23]}  Kd8 {[%clk 0:01:18]} 169. Bh7 {[%clk 0:00:23]}  Ke7 {[%clk 0:01:14]} 170. Bb1 {[%clk 0:00:24]}  Kd8 {[%clk 0:01:15]} 171. Ba2 {[%clk 0:00:25]}  Ke7 {[%clk 0:01:16]} 172. Bc4 {[%clk 0:00:26]}  Kd8 {[%clk 0:01:17]} 173. Bb3 {[%clk 0:00:17]}  Ke7 {[%clk 0:01:18]} 174. Ba4 {[%clk 0:00:18]} 1/2-1/2


[Site "https://www.chess.com"]

[Event "Titled Tuesday Blitz February 21 Early 2023"]
[White "Karttunen, Mika"]
[Black "Jimenez, Joaquin"]
[WhiteFideId "502081"]
[BlackFideId "109860"]
[WhiteElo "2490"]
[BlackElo "2195"]
[Result "1/2-1/2"]
[Round "03"]
[TimeControl "180+2"]
[Date "2023.02.21"]
[WhiteClock "0:00:15"]
[BlackClock "0:00:58"]

1. d4 {[%clk 0:03:00]}  Nf6 {[%clk 0:02:59]} 2. c4 {[%clk 0:03:00]}  g6 {[%clk 0:02:59]} 3. Nc3 {[%clk 0:02:59]}  Bg7 {[%clk 0:02:59]} 4. e4 {[%clk 0:02:59]}  d6 {[%clk 0:03:00]} 5. Nf3 {[%clk 0:02:58]}  O-O {[%clk 0:03:00]} 6. h3 {[%clk 0:02:58]}  e5 {[%clk 0:02:58]} 7. d5 {[%clk 0:02:49]}  a5 {[%clk 0:02:49]} 8. Be3 {[%clk 0:02:48]}  Na6 {[%clk 0:02:47]} 9. Be2 {[%clk 0:02:44]}  Nc5 {[%clk 0:02:47]} 10. Nd2 {[%clk 0:02:43]}  Ne8 {[%clk 0:02:45]} 11. g4 {[%clk 0:02:43]}  f5 {[%clk 0:02:40]} 12. gxf5 {[%clk 0:02:38]}  gxf5 {[%clk 0:02:41]} 13. Bxc5 {[%clk 0:02:04]}  dxc5 {[%clk 0:02:40]} 14. exf5 {[%clk 0:02:01]}  Bxf5 {[%clk 0:02:38]} 15. Bg4 {[%clk 0:01:52]}  Nd6 {[%clk 0:02:34]} 16. Rg1 {[%clk 0:01:41]}  Kh8 {[%clk 0:02:31]} 17. Bxf5 {[%clk 0:01:37]}  Rxf5 {[%clk 0:02:30]} 18. Qg4 {[%clk 0:01:36]}  Qf6 {[%clk 0:02:26]} 19. Nde4 {[%clk 0:01:28]}  Qf7 {[%clk 0:02:11]} 20. Nxd6 {[%clk 0:01:10]}  cxd6 {[%clk 0:02:10]} 21. Ne4 {[%clk 0:01:10]}  Rd8 {[%clk 0:01:45]} 22. Ng5 {[%clk 0:01:04]}  Qf6 {[%clk 0:01:36]} 23. Ne6 {[%clk 0:00:58]}  Rg8 {[%clk 0:01:35]} 24. Rg2 {[%clk 0:00:51]}  e4 {[%clk 0:01:20]} 25. Nxg7 {[%clk 0:00:40]}  Rxg7 {[%clk 0:01:17]} 26. Qxg7+ {[%clk 0:00:39]}  Qxg7 {[%clk 0:01:17]} 27. Rxg7 {[%clk 0:00:40]}  Kxg7 {[%clk 0:01:18]} 28. Ke2 {[%clk 0:00:41]}  Rf3 {[%clk 0:01:18]} 29. Rg1+ {[%clk 0:00:41]}  Kf7 {[%clk 0:01:16]} 30. Rg3 {[%clk 0:00:41]}  Rf5 {[%clk 0:01:06]} 31. Ke3 {[%clk 0:00:41]}  b5 {[%clk 0:01:04]} 32. b3 {[%clk 0:00:40]}  a4 {[%clk 0:01:03]} 33. cxb5 {[%clk 0:00:35]}  axb3 {[%clk 0:01:01]} 34. axb3 {[%clk 0:00:35]}  Rxd5 {[%clk 0:01:01]} 35. Kxe4 {[%clk 0:00:34]}  Rd4+ {[%clk 0:01:02]} 36. Kf5 {[%clk 0:00:30]}  Rb4 {[%clk 0:01:01]} 37. Rd3 {[%clk 0:00:30]}  Ke7 {[%clk 0:01:01]} 38. Rg3 {[%clk 0:00:29]}  Kf7 {[%clk 0:00:59]} 39. Rd3 {[%clk 0:00:26]}  Ke7 {[%clk 0:00:58]} 40. Rg3 {[%clk 0:00:15]}  Kf7 {[%clk 0:00:58]} 1/2-1/2


[Site "https://www.chess.com"]

[Event "Titled Tuesday Blitz February 21 Early 2023"]
[White "Torres Boch, Jose Francisco"]
[Black "Najdin, Danil"]
[WhiteFideId "2278383"]
[BlackFideId "4172426"]
[WhiteElo "2180"]
[BlackElo "2235"]
[Result "1-0"]
[Round "03"]
[TimeControl "180+2"]
[Date "2023.02.21"]
[WhiteClock "0:00:06"]
[BlackClock "0:00:03"]

1. e4 {[%clk 0:02:57]}  g6 {[%clk 0:02:58]} 2. d4 {[%clk 0:02:56]}  c6 {[%clk 0:02:58]} 3. Nc3 {[%clk 0:02:56]}  d5 {[%clk 0:02:58]} 4. exd5 {[%clk 0:02:51]}  cxd5 {[%clk 0:02:59]} 5. h4 {[%clk 0:02:50]}  Nf6 {[%clk 0:02:53]} 6. Be2 {[%clk 0:02:47]}  Bg7 {[%clk 0:02:49]} 7. h5 {[%clk 0:02:45]}  gxh5 {[%clk 0:02:48]} 8. Bxh5 {[%clk 0:02:40]}  Nxh5 {[%clk 0:02:39]} 9. Rxh5 {[%clk 0:02:41]}  e6 {[%clk 0:02:39]} 10. Nf3 {[%clk 0:02:02]}  Nc6 {[%clk 0:02:39]} 11. Qe2 {[%clk 0:01:41]}  Nxd4 {[%clk 0:02:29]} 12. Nxd4 {[%clk 0:01:35]}  Bxd4 {[%clk 0:02:30]} 13. Nxd5 {[%clk 0:01:30]}  Bd7 {[%clk 0:02:08]} 14. c3 {[%clk 0:01:26]}  Bg7 {[%clk 0:02:03]} 15. Bf4 {[%clk 0:01:23]}  Rc8 {[%clk 0:01:53]} 16. O-O-O {[%clk 0:01:21]}  O-O {[%clk 0:01:13]} 17. Qd3 {[%clk 0:01:01]}  f5 {[%clk 0:01:13]} 18. Ne3 {[%clk 0:00:17]}  Bc6 {[%clk 0:01:09]} 19. Qc4 {[%clk 0:00:16]}  Qe8 {[%clk 0:00:58]} 20. Qe2 {[%clk 0:00:16]}  Bb5 {[%clk 0:00:28]} 21. Qf3 {[%clk 0:00:12]}  Qe7 {[%clk 0:00:28]} 22. Nc2 {[%clk 0:00:09]}  Bc6 {[%clk 0:00:20]} 23. Qg3 {[%clk 0:00:09]}  Qf7 {[%clk 0:00:13]} 24. Rdh1 {[%clk 0:00:08]}  Qf6 {[%clk 0:00:13]} 25. Rxh7 {[%clk 0:00:07]}  Be8 {[%clk 0:00:08]} 26. R7h6 {[%clk 0:00:07]}  Qe7 {[%clk 0:00:03]} 27. Be5 {[%clk 0:00:06]} 1-0


[Site "https://www.chess.com"]

[Event "Titled Tuesday Blitz February 21 Early 2023"]
[White "Toktomushev, Teimur"]
[Black "Vovk, Orest"]
[WhiteFideId "14176726"]
[BlackFideId "14113490"]
[WhiteElo "2239"]
[BlackElo "2315"]
[Result "1-0"]
[Round "03"]
[TimeControl "180+2"]
[Date "2023.02.21"]
[WhiteClock "0:00:07"]
[BlackClock "0:00:08"]

1. d4 {[%clk 0:02:59]}  h6 {[%clk 0:02:52]} 2. e4 {[%clk 0:02:59]}  g5 {[%clk 0:02:52]} 3. c4 {[%clk 0:02:52]}  Bg7 {[%clk 0:02:43]} 4. Nc3 {[%clk 0:02:53]}  c5 {[%clk 0:02:43]} 5. d5 {[%clk 0:02:47]}  Bxc3+ {[%clk 0:02:42]} 6. bxc3 {[%clk 0:02:48]}  d6 {[%clk 0:02:42]} 7. h4 {[%clk 0:02:46]}  Qa5 {[%clk 0:02:42]} 8. hxg5 {[%clk 0:02:28]}  hxg5 {[%clk 0:02:41]} 9. Rxh8 {[%clk 0:02:28]}  Qxc3+ {[%clk 0:02:41]} 10. Bd2 {[%clk 0:02:29]}  Qxh8 {[%clk 0:02:42]} 11. Bxg5 {[%clk 0:02:30]}  Qe5 {[%clk 0:02:39]} 12. Nf3 {[%clk 0:02:03]}  Qxe4+ {[%clk 0:02:39]} 13. Be2 {[%clk 0:02:03]}  Bg4 {[%clk 0:02:38]} 14. Kf1 {[%clk 0:00:37]}  Nd7 {[%clk 0:02:24]} 15. Rc1 {[%clk 0:00:25]}  Ngf6 {[%clk 0:02:03]} 16. Qb3 {[%clk 0:00:22]}  Qh7 {[%clk 0:01:44]} 17. Kg1 {[%clk 0:00:22]}  b6 {[%clk 0:01:28]} 18. Qe3 {[%clk 0:00:11]}  Qh5 {[%clk 0:01:19]} 19. Re1 {[%clk 0:00:08]}  O-O-O {[%clk 0:00:29]} 20. Bxf6 {[%clk 0:00:08]}  exf6 {[%clk 0:00:21]} 21. g3 {[%clk 0:00:06]}  Ne5 {[%clk 0:00:06]} 22. Nxe5 {[%clk 0:00:05]}  fxe5 {[%clk 0:00:07]} 23. Bxg4+ {[%clk 0:00:03]}  Qxg4 {[%clk 0:00:08]} 24. Qe4 {[%clk 0:00:03]}  Qxe4 {[%clk 0:00:07]} 25. Rxe4 {[%clk 0:00:04]}  Rh8 {[%clk 0:00:06]} 26. f4 {[%clk 0:00:03]}  f5 {[%clk 0:00:06]} 27. Re3 {[%clk 0:00:03]}  e4 {[%clk 0:00:06]} 28. Kg2 {[%clk 0:00:04]}  Rg8 {[%clk 0:00:06]} 29. Kh2 {[%clk 0:00:02]}  Kd7 {[%clk 0:00:06]} 30. Ra3 {[%clk 0:00:02]}  a5 {[%clk 0:00:05]} 31. Rb3 {[%clk 0:00:03]}  Kc7 {[%clk 0:00:06]} 32. a4 {[%clk 0:00:03]}  Re8 {[%clk 0:00:04]} 33. Re3 {[%clk 0:00:04]}  Kd7 {[%clk 0:00:04]} 34. Kg2 {[%clk 0:00:04]}  Ke7 {[%clk 0:00:04]} 35. Kh3 {[%clk 0:00:03]}  Kf6 {[%clk 0:00:04]} 36. Kg2 {[%clk 0:00:02]}  Re7 {[%clk 0:00:04]} 37. Kh3 {[%clk 0:00:03]}  Kg6 {[%clk 0:00:05]} 38. Kg2 {[%clk 0:00:03]}  Kh5 {[%clk 0:00:05]} 39. Kh3 {[%clk 0:00:04]}  Re8 {[%clk 0:00:05]} 40. Kg2 {[%clk 0:00:04]}  Kg4 {[%clk 0:00:06]} 41. Kh2 {[%clk 0:00:04]}  Rh8+ {[%clk 0:00:04]} 42. Kg2 {[%clk 0:00:05]}  Rh3 {[%clk 0:00:05]} 43. Rb3 {[%clk 0:00:05]}  Rh7 {[%clk 0:00:04]} 44. Rxb6 {[%clk 0:00:04]}  Re7 {[%clk 0:00:03]} 45. Rxd6 {[%clk 0:00:04]}  Kh5 {[%clk 0:00:02]} 46. Rc6 {[%clk 0:00:03]}  e3 {[%clk 0:00:02]} 47. Kf1 {[%clk 0:00:03]}  e2+ {[%clk 0:00:02]} 48. Ke1 {[%clk 0:00:04]}  Kg4 {[%clk 0:00:03]} 49. Rxc5 {[%clk 0:00:04]}  Kf3 {[%clk 0:00:03]} 50. d6 {[%clk 0:00:03]}  Rh7 {[%clk 0:00:03]} 51. Re5 {[%clk 0:00:03]}  Rh1+ {[%clk 0:00:04]} 52. Kd2 {[%clk 0:00:04]}  Rd1+ {[%clk 0:00:04]} 53. Kc2 {[%clk 0:00:04]}  e1=Q {[%clk 0:00:05]} 54. Rxe1 {[%clk 0:00:04]}  Rxe1 {[%clk 0:00:05]} 55. c5 {[%clk 0:00:04]}  Re2+ {[%clk 0:00:03]} 56. Kc3 {[%clk 0:00:04]}  Ke4 {[%clk 0:00:02]} 57. d7 {[%clk 0:00:03]}  Re3+ {[%clk 0:00:02]} 58. Kc4 {[%clk 0:00:03]}  Rd3 {[%clk 0:00:03]} 59. c6 {[%clk 0:00:04]}  Rd6 {[%clk 0:00:03]} 60. c7 {[%clk 0:00:02]}  Rd4+ {[%clk 0:00:04]} 61. Kc5 {[%clk 0:00:02]}  Rxd7 {[%clk 0:00:05]} 62. c8=Q {[%clk 0:00:02]}  Rd5+ {[%clk 0:00:06]} 63. Kc6 {[%clk 0:00:02]}  Rd3 {[%clk 0:00:05]} 64. Qe8+ {[%clk 0:00:02]}  Kf3 {[%clk 0:00:06]} 65. Kb5 {[%clk 0:00:03]}  Rb3+ {[%clk 0:00:06]} 66. Kxa5 {[%clk 0:00:04]}  Kxg3 {[%clk 0:00:07]} 67. Qg6+ {[%clk 0:00:04]}  Kxf4 {[%clk 0:00:07]} 68. Qh6+ {[%clk 0:00:05]}  Ke4 {[%clk 0:00:07]} 69. Qe6+ {[%clk 0:00:05]}  Kf4 {[%clk 0:00:07]} 70. Qxb3 {[%clk 0:00:06]}  Kg5 {[%clk 0:00:08]} 71. Kb5 {[%clk 0:00:07]} 1-0


[Site "https://www.chess.com"]